fUST/lending_fUST_20250322
["ID","MTS","AMOUNT","RATE_DAILY","PERIOD"]
[356522549,1742610647421,-500.0,0.00033973,5]
[356522550,1742610647431,-500.0,0.00033973,5]
[356522551,1742610647440,-500.0,0.00033973,5]
[356522552,1742610647450,-162.00411984,0.00033973,5]
[356522553,1742610647459,-558.13932593,0.00033973,5]
[356522554,1742610647468,-500.0,0.00033973,5]
[356522555,1742610647477,-348.31044748,0.00033973,2]
[356522556,1742610647487,-500.0,0.00033973,5]
[356522557,1742610647497,-500.0,0.00033973,5]
[356522558,1742610647507,-500.0,0.00033973,5]
[356522559,1742610647517,-500.0,0.00033973,5]
[356522560,1742610647526,-500.12061253,0.00033973,3]
[356522561,1742610647535,-230.95378217,0.00033973,5]
[356522562,1742610647545,-500.0,0.00033973,5]
[356522563,1742610647554,-500.0,0.00033973,5]
[356522564,1742610647563,-589.84816389,0.00033973,5]
[356522565,1742610647573,-500.0,0.00033973,5]
[356522566,1742610647583,-500.0,0.00033973,5]
[356522567,1742610647592,-500.0,0.00033973,5]
[356522568,1742610647601,-500.0,0.00033973,5]
[356522569,1742610647611,-500.0,0.00033973,5]
[356522570,1742610647620,-561.37100534,0.00033973,5]
[356522571,1742610647631,-500.0,0.00033973,5]
[356522572,1742610647643,-500.0,0.00033973,5]
[356522573,1742610647652,-500.0,0.00033973,5]
[356522574,1742610647662,-500.0,0.00033973,5]
[356522575,1742610647671,-500.0,0.00033973,5]
[356522576,1742610647680,-500.0,0.00033973,5]
[356522577,1742610647690,-500.0,0.0003398,2]
[356522578,1742610647700,-29552.6804398,0.0003399,2]
[356522579,1742610647709,-115314.57,0.00034,30]
[356522580,1742610647719,-1305.37,0.00034,30]
[356522581,1742610647729,-500.0,0.00034,120]
[356522582,1742610647738,-500.0,0.00034,2]
[356522583,1742610647748,-1000.0,0.00034,28]
[356522584,1742610647757,-1000.0,0.00034,28]
[356522585,1742610647767,-1000.0,0.00034,28]
[356522586,1742610647776,-1000.0,0.00034,28]
[356522587,1742610647786,-1000.0,0.00034,28]
[356522588,1742610647795,-1000.0,0.00034,28]
[356522589,1742610647805,-1000.0,0.00034,28]
[356522590,1742610647815,-1000.0,0.00034,28]
[356522591,1742610647825,-1000.0,0.00034,28]
[356522592,1742610647835,-1000.0,0.00034,28]
[356522593,1742610647844,-1000.0,0.00034,28]
[356522594,1742610647854,-1000.0,0.00034,28]
[356522595,1742610647864,-118.2478517,0.00034,28]
[356522596,1742610647906,-283.54890207,0.00034,28]
[356522597,1742610647918,-574.47949418,0.00034,28]
[356522598,1742610647931,-23.72375205,0.00034,28]
[356522599,1742610647941,-1000.0,0.00034,28]
[356522600,1742610647951,-506.4599702,0.00034,28]
[356522601,1742610647963,-493.5400298,0.00034,28]
[356522602,1742610647973,-1000.0,0.00034,28]
[356522603,1742610647983,-1000.0,0.00034,28]
[356522604,1742610647993,-1000.0,0.00034,28]
[356522605,1742610648002,-1000.0,0.00034,28]
[356522606,1742610648012,-1000.0,0.00034,28]
[356522607,1742610648022,-1000.0,0.00034,28]
[356522608,1742610648325,-1000.0,0.00034,28]
[356522609,1742610648352,-1000.0,0.00034,28]
[356522610,1742610648362,-1000.0,0.00034,28]
[356522611,1742610648372,-1000.0,0.00034,28]
[356522612,1742610648381,-1000.0,0.00034,28]
[356522613,1742610648390,-1000.0,0.00034,28]
[356522614,1742610648400,-1000.0,0.00034,28]
[356522615,1742610648410,-1000.0,0.00034,28]
[356522616,1742610648420,-1000.0,0.00034,28]
[356522617,1742610648430,-1000.0,0.00034,28]
[356522618,1742610648439,-400.05522073,0.00034,28]
[356522619,1742610648452,-599.94477927,0.00034,28]
[356522620,1742610648462,-1000.0,0.00034,28]
[356522621,1742610648472,-1000.0,0.00034,28]
[356522622,1742610648482,-1000.0,0.00034,28]
[356522623,1742610648492,-1000.0,0.00034,28]
[356522624,1742610648501,-1000.0,0.00034,28]
[356522625,1742610648511,-1000.0,0.00034,28]
[356522626,1742610648521,-1000.0,0.00034,28]
[356522627,1742610648530,-1000.0,0.00034,28]
[356522628,1742610648540,-1000.0,0.00034,28]
[356522629,1742610648550,-1000.0,0.00034,28]
[356522630,1742610648560,-1000.0,0.00034,28]
[356522631,1742610648569,-1000.0,0.00034,28]
[356522632,1742610648578,-1000.0,0.00034,28]
[356522633,1742610648588,-1000.0,0.00034,28]
[356522634,1742610648597,-1000.0,0.00034,28]
[356522635,1742610648607,-1000.0,0.00034,28]
[356522636,1742610648616,-1000.0,0.00034,28]
[356522637,1742610648626,-1000.0,0.00034,28]
[356522638,1742610648636,-1000.0,0.00034,28]
[356522639,1742610648645,-1000.0,0.00034,28]
[356522640,1742610648655,-964.0034471,0.00034,28]
[356522641,1742610648700,-159.6070029,0.00034,28]
[356522642,1742610648710,-151.0,0.00034,14]
[356522643,1742610648720,-151.0,0.00034,14]
[356522644,1742610648730,-9850.89347994,0.0003409,2]
[356522645,1742610648739,-151.0,0.0003409,14]
[356522646,1742610648749,-9088.25452771,0.000341,30]
[356522647,1742611040588,-158.0944893,0.0001821,2]
[356522648,1742611558308,-341.9055107,0.0001821,2]
[356522649,1742611558331,-500.0,0.00021,2]
[356522650,1742611558352,-1513.4866798,0.00032,7]
[356522651,1742611558373,-4830.71984559,0.00032271,4]
[356522652,1742611641106,-170.02183704,0.00032271,4]
[356522653,1742611641129,-160.0,0.00032556,2]
[356522654,1742611641150,-2651.96223195,0.00032575,2]
[356522655,1742611649165,-348.03776805,0.00032575,2]
[356522656,1742611649188,-1000.0,0.00032655,2]
[356522657,1742611649210,-293.92709443,0.00032655,2]
[356522693,1742611831946,-3324.8159392,0.0003161,2]
[356522695,1742611831956,-347.80789463,0.00032655,2]
[356522697,1742611831965,-600.0,0.00032655,2]
[356522699,1742611831974,-400.0,0.00032664,2]
[356522701,1742611831983,-500.0,0.00032664,2]
[356522703,1742611831993,-500.0,0.00032664,2]
[356522705,1742611832002,-414.0,0.00032665,2]
[356522708,1742611832011,-12183.1711409,0.00032665,2]
[356522711,1742611832021,-500.0,0.00032665,2]
[356522714,1742611832030,-500.0,0.00032673,5]
[356522717,1742611832039,-500.0,0.00032673,5]
[356522720,1742611832048,-500.0,0.00032673,5]
[356522723,1742611832057,-1805.83641,0.00032674,7]
[356522726,1742611832066,-63125.86024968,0.00032675,2]
[356522729,1742611832078,-32579.91144512,0.00032675,2]
[356522731,1742611832089,-106229.85503968,0.00032675,2]
[356523552,1742611840246,-182.44054027,0.00032675,2]
[356523828,1742611842975,-858.8759919,0.00032675,2]
[356524122,1742611845885,-3937.84121106,0.00032675,2]
[356525581,1742611933084,2801.54444943,0.00018,2]
[356525582,1742611933105,2924.23947357,0.00018,2]
[356525583,1742611933134,1012.216077,0.00018,2]
[356525588,1742612751127,-157.605773,0.00031418,2]
[356525589,1742612751148,-153.0,0.00031473,2]
[356525590,1742612751169,-260.3048596,0.0003195,2]
[356525591,1742612751189,-177.23875,0.00031994,2]
[356525592,1742612751465,-182.640623,0.00032001,2]
[356525593,1742612751486,-203.9018759,0.00032039,2]
[356525594,1742612751509,-182.640623,0.00032321,2]
[356525595,1742612751529,-160.0,0.00032383,2]
[356525596,1742612751549,-517.33023499,0.00032383,2]
[356525598,1742612839086,-834.31595416,0.00032375,2]
[356525599,1742612839107,-160.0,0.00032375,2]
[356525600,1742612839129,-211.41587023,0.000324,2]
[356525601,1742612839150,-153.23765807,0.000325,2]
[356525602,1742612839171,-620.57112864,0.00032512,7]
[356525603,1742612839193,-182.640623,0.00032641,2]
[356525604,1742612839215,-334.0,0.00032699,2]
[356525605,1742612839240,-318.61,0.000327,31]
[356525606,1742612839266,-227.24066681,0.000327,31]
[356525782,1742613040240,-250.0,0.00032466,2]
[356525784,1742613040251,-2999.3084619,0.00032497,2]
[356525786,1742613040261,-91.36933319,0.000327,31]
[356525788,1742613040270,-318.61,0.000327,31]
[356525790,1742613040280,-318.61,0.000327,31]
[356525792,1742613040289,-318.61,0.000327,31]
[356525794,1742613040299,-318.61,0.000327,31]
[356525796,1742613040308,-318.61,0.000327,31]
[356525797,1742613040318,-318.61,0.000327,31]
[356525798,1742613040328,-318.61,0.000327,31]
[356525800,1742613040337,-318.61,0.000327,31]
[356525802,1742613040347,-318.61,0.000327,31]
[356525804,1742613040357,-318.61,0.000327,31]
[356525806,1742613040366,-171.87027027,0.00032877,2]
[356525808,1742613040375,-204.71927423,0.000329,6]
[356525810,1742613040384,-182.640623,0.00032961,2]
[356525812,1742613040393,-182.640623,0.00033281,2]
[356525814,1742613040402,-333.2456197,0.0003399,2]
[356525816,1742613040412,-170.42151666,0.00033993,2]
[356525818,1742613040425,-295.25140816,0.00034,2]
[356525820,1742613040435,-424.26631724,0.00034034,2]
[356525822,1742613040444,-600.0,0.00034079,2]
[356525824,1742613040454,-500.0,0.00034099,7]
[356525826,1742613040463,-500.0,0.00034099,2]
[356525828,1742613040473,-500.0,0.00034099,7]
[356525830,1742613040483,-500.0,0.00034099,2]
[356525832,1742613040492,-426.86280604,0.00034099,2]
[356525946,1742613043351,-53.84601381,0.00034099,2]
[356525948,1742613043361,-500.0,0.00034099,7]
[356525950,1742613043370,-500.0,0.00034099,7]
[356525952,1742613043379,-463.59623755,0.00034099,7]
[356525954,1742613043389,-422.0,0.000341,2]
[356525956,1742613043398,-552.59904606,0.000341,30]
[356526249,1742613046188,-6819.09642623,0.000341,30]
[356526251,1742613046197,-4679.17285017,0.000341,30]
[356526253,1742613046208,-3391.57714983,0.000341,30]
[356526255,1742613046218,-7608.42285017,0.000341,30]
[356526413,1742613047748,1237.61671764,0.00024953,2]
[356526491,1742613952107,-461.50277198,0.00027397,5]
[356526493,1742614047230,-500.0,0.00027397,5]
[356526494,1742614047251,-903.87934767,0.00028767,5]
[356526495,1742614047279,-143.72071237,0.00028767,5]
[356526496,1742614047300,-179.3,0.0003,15]
[356526497,1742614047322,-182.640625,0.00031052,2]
[356526498,1742614047345,-250.0,0.00031366,2]
[356526499,1742614047366,-4872.58247492,0.00032,120]
[356526512,1742614150081,-2925.96871135,0.00028,2]
[356526513,1742614152128,-3068.28046702,0.00028,2]
[356526514,1742614156072,-1499.22893465,0.00028,2]
[356526551,1742614232007,-400.0,0.00031644,2]
[356526553,1742614232017,-18533.4624566,0.00031645,2]
[356526555,1742614232027,-182.640625,0.00032294,2]
[356526556,1742614232036,-500.0,0.000327,5]
[356526558,1742614232045,-386.70918312,0.000327,5]
[356526559,1742614232054,-313.16,0.000327,31]
[356526560,1742614232063,-313.16,0.000327,31]
[356526561,1742614232073,-313.16,0.000327,31]
[356526562,1742614232082,-313.16,0.000327,31]
[356526563,1742614232091,-313.16,0.000327,31]
[356526564,1742614232100,-313.16,0.000327,31]
[356526565,1742614232109,-313.16,0.000327,31]
[356526566,1742614232118,-313.16,0.000327,31]
[356526567,1742614232127,-313.16,0.000327,31]
[356526568,1742614232136,-313.16,0.000327,31]
[356526569,1742614232145,-313.16,0.000327,31]
[356526570,1742614232155,-313.16,0.000327,31]
[356526571,1742614232165,-171.87027027,0.00032877,2]
[356526572,1742614232174,-205.51103689,0.000329,6]
[356526573,1742614232183,-474.52741071,0.00032962,2]
[356526574,1742614232192,-160.0,0.00032975,2]
[356526575,1742614232201,-12428.05465079,0.00032993,2]
[356526576,1742614232210,-620.1912057,0.00033062,2]
[356526577,1742614232220,-187.7342896,0.00033077,4]
[356526578,1742614232229,-500.0,0.0003315,5]
[356526579,1742614232238,-500.0,0.0003315,5]
[356526580,1742614232247,-500.0,0.0003315,5]
[356526581,1742614232257,-500.0,0.0003326,5]
[356526582,1742614232266,-500.0,0.0003326,5]
[356526583,1742614232275,-500.0,0.0003326,5]
[356526584,1742614232284,-500.0,0.0003326,5]
[356526585,1742614232294,-500.0,0.0003336,5]
[356526586,1742614232303,-1646.86873435,0.00034,16]
[356526587,1742614232312,-10237.50738937,0.00034,16]
[356526722,1742614240206,-500.0,0.00032992,2]
[356526724,1742614240216,-500.0,0.00032992,7]
[356526726,1742614240225,-500.0,0.00032992,7]
[356526728,1742614240234,-500.0,0.00032992,2]
[356526730,1742614240243,-500.0,0.00032992,2]
[356526732,1742614240253,-382.24740743,0.00032992,2]
[356526734,1742614240262,-4645.30705838,0.00034,16]
[356526736,1742614240271,-200.3949759,0.00034,2]
[356526738,1742614240280,-570.16643626,0.00034046,2]
[356526740,1742614240289,-151.0,0.00034099,2]
[356526742,1742614240298,-220.87180953,0.00034099,7]
[356526744,1742614240308,-2848.70856589,0.000341,30]
[356526752,1742614240375,-155.98659419,0.000341,30]
[356526822,1742614246178,-9121.49198975,0.000341,30]
[356526823,1742614246187,-295.25140816,0.00034146,2]
[356526824,1742614246197,-570.16643624,0.00034218,2]
[356526825,1742614246206,-1511.35944225,0.00034246,21]
[356526826,1742614246217,-2098.95055775,0.00034246,21]
[356526827,1742614246227,-1449.93,0.00034246,21]
[356526828,1742614246237,-2636.2,0.00034246,21]
[356526829,1742614246246,-4814.91944225,0.00034301,7]
[356526830,1742614293044,276.73606763,0.00024953,2]
[356526831,1742614517995,300.4,0.00018,2]
[356526833,1742615144130,-500.0,0.00027397,5]
[356526834,1742615144151,-1000.0,0.00028767,5]
[356526835,1742615144172,-762.53343706,0.0003,30]
[356526836,1742615226077,-465.80932007,0.00027397,5]
[356526837,1742615226100,-150.0,0.0002792,2]
[356526838,1742615226124,-150.0,0.00028216,2]
[356526839,1742615226147,-150.0,0.00028289,2]
[356526840,1742615226169,-150.0,0.00028587,2]
[356526841,1742615226190,-150.0,0.0002886,2]
[356526842,1742615226212,-150.0,0.00029107,2]
[356526843,1742615226233,-150.0,0.00029437,2]
[356526844,1742615226255,-4.35660713,0.0002974,2]
[356526845,1742615226284,-145.64339287,0.0002974,2]
[356526846,1742615226306,-150.0,0.0002989,2]
[356526847,1742615226330,-1435.22856897,0.0003,30]
[356526963,1742615443408,-1128.53175374,0.0003,30]
[356526969,1742615446409,-62.61796871,0.0003,30]
[356526970,1742615934894,222.636,0.00018,2]
[356526971,1742616334129,-726.37594421,0.00025261,2]
[356526972,1742616334150,-150.0,0.00026081,2]
[356526973,1742616334172,-150.0,0.00026402,2]
[356526974,1742616334192,-150.0,0.00026645,2]
[356526975,1742616334212,-150.0,0.00026953,2]
[356526976,1742616334231,-150.0,0.00027353,2]
[356526977,1742616334252,-1700.8164755,0.00027555,2]
[356526978,1742616334272,-150.0,0.00027594,2]
[356526979,1742616334292,-1901.0618621,0.00027598,2]
[356526980,1742616334312,-150.0,0.00027928,2]
[356526981,1742616334332,-150.0,0.00028088,2]
[356526982,1742616334354,-150.0,0.00028453,2]
[356526983,1742616334382,-150.0,0.00028715,2]
[356526984,1742616334407,-208.55284254,0.000289,5]
[356526985,1742616334428,-150.0,0.00028968,2]
[356526986,1742616334450,-150.0,0.0002909,2]
[356526987,1742616334470,-190.44801468,0.00029459,2]
[356526988,1742616334490,-6611.08827152,0.0003,30]
[356526989,1742616334510,-2472.78579227,0.00030247,16]
[356526990,1742616334534,-2300.62480275,0.00030247,16]
[356526991,1742616440083,-250.0,0.00029863,2]
[356526992,1742616440105,-400.0,0.00030246,2]
[356526993,1742616440129,-1638.94462369,0.00030247,16]
[356526994,1742616445106,-3746.40643561,0.00030247,16]
[356526995,1742616566082,-300.0,0.00029775,2]
[356526996,1742616566102,-155.0,0.00030246,2]
[356526997,1742616566122,-400.0,0.00030247,2]
[356526998,1742616566143,-4383.66842823,0.00030248,2]
[356527010,1742616632339,-1217.93426814,0.00030248,2]
[356527012,1742616632351,-1381.01908493,0.00030248,2]
[356527013,1742616632361,-208.55284244,0.000309,5]
[356527015,1742616632370,-1761.88300205,0.000309,2]
[356527016,1742616632379,-400.0,0.0003098,2]
[356527017,1742616632388,-1000.0,0.00030981,2]
[356527018,1742616632398,-600.0,0.00030981,2]
[356527019,1742616632407,-1236.39289613,0.00031,16]
[356527020,1742616632417,-422.0,0.00031,2]
[356527021,1742616632426,-14670.0,0.00031,2]
[356527022,1742616632436,-2497.5,0.00031,7]
[356527023,1742616632446,-2497.5,0.00031,7]
[356527024,1742616632458,-622.2,0.00031036,2]
[356527025,1742616632467,-5596.19991058,0.00031091,16]
[356527026,1742616632495,-1000.0,0.00031091,16]
[356527033,1742616638321,-275.71165541,0.00031091,16]
[356527058,1742616643955,-1003.14926611,0.00031091,16]
[356527656,1742616650005,191.44146524,0.00024953,2]
[356527941,1742617548132,-198.71573399,0.000308,2]
[356527942,1742617548157,-1294.74793412,0.000309,2]
[356527943,1742617548181,-400.0,0.00030923,2]
[356527944,1742617548205,-129.62843682,0.00030924,2]
[356527950,1742617634117,-400.0,0.00030923,2]
[356527951,1742617634140,-2656.22719355,0.00030924,2]
[356527952,1742617644087,-2465.32801488,0.00030924,2]
[356527955,1742617757072,-260.3048596,0.00030683,2]
[356527962,1742617809118,276.73606763,0.00024953,2]
[356527999,1742617838512,-4748.81635475,0.00030924,2]
[356528000,1742617838522,-211.41587023,0.00030991,2]
[356528001,1742617838532,-160.0,0.0003161,2]
[356528002,1742617838541,-153.0,0.00031612,2]
[356528003,1742617838550,-415.21148438,0.000319,2]
[356528004,1742617838559,-600.0,0.00031973,2]
[356528005,1742617838569,-214.0,0.0003199,2]
[356528006,1742617838578,-500.0,0.00031991,2]
[356528007,1742617838587,-500.4858323,0.00031991,2]
[356528008,1742617838597,-6112.83463736,0.00031992,2]
[356528027,1742617840939,-550.66140262,0.00031992,2]
[356528071,1742617843666,-1214.87986347,0.00031992,2]
[356528072,1742617843712,-14833.85260445,0.00031992,2]
[356528073,1742617843721,-2658.83274493,0.00032,31]
[356528074,1742617843731,-620.57112864,0.00032,7]
[356528075,1742617843741,-182.640623,0.00032028,2]
[356528076,1742617843751,-1177.8,0.00032028,2]
[356528077,1742617843760,-203.9018759,0.00032074,2]
[356528079,1742617843770,-177.23875,0.00032083,2]
[356528082,1742617843779,-170.021837,0.0003227,4]
[356528085,1742617843788,-182.640623,0.00032668,2]
[356528089,1742617843798,-281.05,0.000327,31]
[356528092,1742617843807,-281.05,0.000327,31]
[356528095,1742617843816,-281.05,0.000327,31]
[356528096,1742617843828,-281.05,0.000327,31]
[356528097,1742617843839,-281.05,0.000327,31]
[356528098,1742617843848,-281.05,0.000327,31]
[356528099,1742617843857,-281.05,0.000327,31]
[356528100,1742617843867,-281.05,0.000327,31]
[356528101,1742617843877,-281.05,0.000327,31]
[356528102,1742617843886,-281.05,0.000327,31]
[356528103,1742617843896,-281.05,0.000327,31]
[356528104,1742617843907,-281.05,0.000327,31]
[356528105,1742617843917,-166.2356926,0.00032877,2]
[356528106,1742617843927,-2138.689983,0.00033,31]
[356528107,1742617843936,-2200.0,0.00033032,2]
[356528108,1742617843946,-187.7342896,0.00033191,4]
[356528109,1742617843956,-182.640623,0.00033309,2]
[356528110,1742617843965,-500.0,0.00033857,5]
[356528111,1742617843974,-333.2456197,0.00033993,2]
[356528112,1742617843984,-3793.46572797,0.000341,7]
[356528113,1742617843994,-500.0,0.00034144,12]
[356528114,1742617844005,-500.0,0.00034201,2]
[356528115,1742617844015,-315.05277263,0.00034217,2]
[356528116,1742617844024,-4138.55890379,0.000343,16]
[356528117,1742617844033,-259.38968751,0.000343,16]
[356528168,1742617846683,370.99390228,0.00024953,2]
[356528169,1742617895702,198.71573399,0.00030583,2]
[356528172,1742618746099,-500.0,0.0003,120]
[356528173,1742618746125,-247.34,0.000327,31]
[356528174,1742618746153,-247.34,0.000327,31]
[356528175,1742618746178,-247.34,0.000327,31]
[356528176,1742618746203,-247.34,0.000327,31]
[356528177,1742618746228,-247.34,0.000327,31]
[356528178,1742618746252,-247.34,0.000327,31]
[356528179,1742618746275,-247.34,0.000327,31]
[356528180,1742618746298,-247.34,0.000327,31]
[356528181,1742618746321,-247.34,0.000327,31]
[356528182,1742618746345,-247.34,0.000327,31]
[356528183,1742618746369,-247.34,0.000327,31]
[356528184,1742618746391,-247.34,0.000327,31]
[356528185,1742618746410,-1203.72986056,0.00032876,7]
[356528186,1742618746429,-160.78583836,0.00032877,2]
[356528187,1742618746451,-208.55284244,0.000329,6]
[356528188,1742618746472,-414.19443361,0.00033792,7]
[356528189,1742618854095,-217.68,0.000327,31]
[356528190,1742618854123,-217.68,0.000327,31]
[356528191,1742618854148,-217.68,0.000327,31]
[356528192,1742618854176,-217.68,0.000327,31]
[356528193,1742618854201,-217.68,0.000327,31]
[356528194,1742618854226,-217.68,0.000327,31]
[356528195,1742618854252,-217.68,0.000327,31]
[356528196,1742618854276,-217.68,0.000327,31]
[356528197,1742618854303,-217.68,0.000327,31]
[356528198,1742618854329,-217.68,0.000327,31]
[356528199,1742618854353,-217.68,0.000327,31]
[356528200,1742618854377,-217.68,0.000327,31]
[356528201,1742618854399,-295.64339287,0.00033472,2]
[356528202,1742618854420,-789.53542695,0.00033792,7]
[356528203,1742618854444,-208.55284244,0.000339,6]
[356528204,1742618854466,-637.82697236,0.00034,2]
[356528205,1742619014404,750.0,0.0003,2]
[356528208,1742619035263,750.0,0.00025205,2]
[356528274,1742619039968,-1065.02430452,0.00034,2]
[356528275,1742619039979,-151.0,0.00034216,2]
[356528276,1742619039990,-160.0,0.0003422,2]
[356528277,1742619040001,-834.31595416,0.00034225,2]
[356528278,1742619040010,-160.0,0.00034247,2]
[356528279,1742619040020,-1030.11195362,0.000343,2]
[356528280,1742619040029,-500.0,0.000343,13]
[356528281,1742619040038,-500.0,0.000343,13]
[356528282,1742619040048,-7118.24404109,0.00034301,7]
[356528288,1742619045864,-212.14760544,0.000343,2]
[356528289,1742619045874,-1677.11781421,0.00034301,7]
[356528290,1742619045884,-1030.11195359,0.00034323,2]
[356528291,1742619045893,-1030.11195359,0.00034345,2]
[356528292,1742619045902,-1030.11195359,0.00034368,2]
[356528293,1742619045912,-160.0,0.00034373,2]
[356528294,1742619045921,-295.25140816,0.00034373,2]
[356528295,1742619045930,-500.0,0.00034373,5]
[356528296,1742619045940,-500.0,0.00034373,5]
[356528297,1742619045949,-500.0,0.00034373,5]
[356528298,1742619045958,-500.0,0.00034373,5]
[356528299,1742619045967,-500.0,0.00034373,5]
[356528300,1742619045977,-500.0,0.00034373,5]
[356528301,1742619045986,-500.0,0.00034373,5]
[356528302,1742619045995,-500.0,0.00034373,5]
[356528303,1742619046005,-500.0,0.00034389,7]
[356528304,1742619046015,-500.0,0.00034389,2]
[356528305,1742619046024,-500.0,0.00034389,7]
[356528306,1742619046033,-500.0,0.00034389,2]
[356528307,1742619046042,-63.41658782,0.00034389,7]
[356528308,1742619046054,-436.58341218,0.00034389,7]
[356528309,1742619046063,-300.0,0.00034389,7]
[356528310,1742619046072,-430.70881985,0.00034389,2]
[356528311,1742619046081,-9832.70776797,0.0003439,2]
[356528312,1742619050068,1392.64832414,0.00024953,2]
[356528313,1742619050092,1552.44128986,0.00024953,2]
[356528314,1742619945128,-160.0,0.00024,14]
[356528315,1742619945150,-300.0,0.00025204,2]
[356528316,1742619945173,-3789.51632055,0.00025205,2]
[356528317,1742620028082,-300.0,0.00025204,2]
[356528318,1742620028104,-752.60283913,0.00025205,2]
[356528319,1742620046089,-6472.39981205,0.00025205,2]
[356528320,1742620080716,10000.0,0.00018,2]
[356528321,1742620095541,8060.0,0.00018,2]
[356528322,1742620149166,-4383.25102827,0.00025205,2]
[356528323,1742620149192,-208.24866193,0.000259,4]
[356528324,1742620149216,-200.0,0.0002597,2]
[356528325,1742620149239,-160.0,0.00025971,2]
[356528326,1742620149262,-12428.05465079,0.00025971,2]
[356528327,1742620149286,-500.0,0.000269,2]
[356528328,1742620149310,-500.0,0.000282,5]
[356528329,1742620149333,-500.0,0.000282,5]
[356528330,1742620149356,-500.0,0.000282,5]
[356528331,1742620149379,-500.0,0.000282,5]
[356528332,1742620149405,-208.24866188,0.00028567,5]
[356528333,1742620151074,-1000.0,0.0003,14]
[356528334,1742620151097,-422.0,0.0003,2]
[356528352,1742620232032,-500.0,0.00031132,2]
[356528353,1742620232042,-500.0,0.00031132,2]
[356528354,1742620232052,-398.99947484,0.00031132,2]
[356528355,1742620232063,-633.65360944,0.00031132,2]
[356528356,1742620232072,-151.0,0.00031142,7]
[356528357,1742620232082,-11338.508077,0.00031143,2]
[356528358,1742620232091,-620.1912057,0.00031392,2]
[356528359,1742620232100,-500.0,0.0003185,5]
[356528360,1742620232110,-500.0,0.0003185,5]
[356528361,1742620232119,-500.0,0.0003185,5]
[356528362,1742620232129,-500.0,0.0003185,5]
[356528363,1742620232139,-500.0,0.0003185,5]
[356528364,1742620232150,-500.0,0.0003185,5]
[356528365,1742620232159,-208.24866188,0.000319,6]
[356528366,1742620232170,-1513.4866798,0.00032,7]
[356528367,1742620232179,-1000.0,0.00032379,5]
[356528368,1742620232189,-206.02239075,0.000326,2]
[356528369,1742620232415,-151.0,0.00032699,7]
[356528370,1742620232446,-2247.75,0.000327,7]
[356528371,1742620232456,-2247.75,0.000327,7]
[356528372,1742620232466,-191.57,0.000327,31]
[356528373,1742620232476,-191.57,0.000327,31]
[356528374,1742620232485,-191.57,0.000327,31]
[356528375,1742620232495,-191.57,0.000327,31]
[356528376,1742620232505,-191.57,0.000327,31]
[356528377,1742620232514,-191.57,0.000327,31]
[356528378,1742620232524,-191.57,0.000327,31]
[356528379,1742620232533,-191.57,0.000327,31]
[356528380,1742620232542,-191.57,0.000327,31]
[356528381,1742620232552,-191.57,0.000327,31]
[356528382,1742620232561,-191.57,0.000327,31]
[356528383,1742620232571,-191.57,0.000327,31]
[356528384,1742620232581,-151.0,0.000327,7]